[Event "Ramat Gan Masters-A Winter 2023"]
[Site "Ramat Gan/ISR"]
[Date "2023.02.27"]
[Round "6.10"]
[White "Shapira, Avner"]
[Black "Medovoy, Yaniv"]
[Result "1-0"]
[Annotator "NA RC COMBH"]
[ECO "C11"]
[WhiteElo "1814"]
[BlackElo "1842"]
[PlyCount "65"]
[EventDate "2023.01.17"]
[EventType "swiss"]
[SourceTitle "playchess.com"]
[Source "ChessBase"]
[SourceQuality "1"]
[TimeControl "5400+30"]

{[%evp 8,61,23,-18,7,-47,-48,-62,-26,-61,32767,32767,-81,-88,-55,-97,-60,-68,-66,32767,32767,-74,-95,-110,32767,-130,-136,-117,-61,-64,0,32767,32767,32767,32767,0,32767,160,140,155,32767,0,170,155,212,145,270,354,1070,822,854,368,338,-407,-394,-374]} 1. e4 {[%emt 0:00:01]} c5 {[%emt 0:00:01]} 2. Nf3 {[%emt 0:00:11]} Nf6 {[%emt 0:00:05]} 3. Nc3 {[%emt 0:06:54]} d5 {[%emt 0:00:17]} 4. e5 {[%emt 0:02:13]} Nfd7 {[%emt 0:00:05]} 5. d4 {[%emt 0:19:54]} e6 {[%emt 0:00:05]} 6. Be3 {[%emt 0:02:49]} (6. Ne2 $11 {is more appropriate.}) 6... Nc6 {[%emt 0:03:40]} 7. Qd2 {[%emt 0:05:12]} Qc7 {[%emt 0:20:29]} 8. O-O-O {[%emt 0:06:26]} cxd4 {[%emt 0:05:30]} 9. Bxd4 {[%emt 0:00:04]} a6 {[%emt 0:11:36]} 10. Re1 {[%emt 0:12:23]} b5 {[%emt 0:06:45]} ({Black should try} 10... Be7 $17) 11. Kb1 {[%emt 0:01:42]} (11. Nxd5 $1 $15 exd5 12. e6) 11... Bb7 {[%emt 0:05:52]} (11... Be7 $17) 12. Qf4 {[%emt 0:03:20]} Be7 {[%emt 0:04:35]} 13. Bd3 {[%emt 0:02:39]} Rc8 {[%emt 0:01:27]} 14. h4 {[%emt 0:07:23]} (14. Qg3 $11 {feels stronger.}) 14... Nxd4 {[%emt 0:09:05]} 15. Nxd4 {[%emt 0:00:51]} b4 {[%emt 0:01:01]} 16. Nd1 {[%emt 0:04:13]} Nc5 {[%emt 0:10:30]} 17. Rh3 {[%emt 0:08:32]} Nxd3 {[%emt 0:06:09]} ({Better is} 17... O-O $17 18. b3 Kh8) 18. Rxd3 {[%emt 0:02:57]} a5 {[%emt 0:01:21]} (18... O-O $15) 19. Rg3 {[%emt 0:01:26]} g6 {[%emt 0:03:32]} 20. Ne3 {[%emt 0:02:49]} Ba6 {[%emt 0:02:56]} 21. h5 {[%emt 0:01:21]} g5 {[%emt 0:01:13]} 22. Rxg5 $1 {[%emt 0:04:19]} Bxg5 {[%emt 0:00:01]} 23. Qxg5 {[%emt 0:00:01]} Qe7 {[%emt 0:00:22] [#]} 24. Qg3 $2 {[%emt 0:01:14]} ({Only move:} 24. Qh6 $1 $18) 24... Qc5 $2 {[%emt 0:01:53]} (24... Kd7 $11 {and Black stays safe.}) 25. Rd1 {[%emt 0:01:25]} a4 {[%emt 0:01:57]} (25... Kd7 {might work better.}) 26. Ng4 {[%emt 0:00:13]} (26. f4 $18) 26... Ke7 $2 {[%emt 0:01:49]} (26... Kd7 $16) 27. Nf6 {[%emt 0:00:27]} a3 $2 {[%emt 0:00:45]} (27... b3 28. axb3 (28. cxb3 Be2 $11 {[%mdl 64] Back Rank}) 28... axb3 29. Qxb3 Rb8) 28. Qg5 {[%emt 0:00:39]} Kd8 {[%emt 0:01:29]} 29. Nxd5+ {[%emt 0:00:30]} (29. Qg7 $142 Ke7 30. Nf5+ {[%mdl 64] Deflection} (30. Nxh7 Rxh7 31. Qxh7 axb2 $11) 30... exf5 31. Nxd5+ (31. Rxd5 $2 {gets mated.} Qxc2+ 32. Ka1 axb2#) 31... Kd7 32. Nxb4+ Ke7 33. Qf6+ (33. Nxa6 $2 {leads to mate.} Qxc2+ 34. Ka1 Qxd1#) (33. bxa3 Rhd8 $11) 33... Ke8 34. Qxh8+ Qf8 35. Qxf8+ (35. Qxh7 Qxb4 36. Qh8+ Ke7 $14) 35... Kxf8 36. Nxa6) 29... Kd7 {[%emt 0:00:00] [#]} 30. Nxb4 $4 {[%emt 0:03:22]} Qxb4 $19 {[%emt 0:01:00]} 31. Nxe6+ {[%emt 0:00:30]} Kc6 {[%emt 0:00:30]} 32. Rd6+ {[%emt 0:00:30]} Kb7 {[%emt 0:00:30]} 33. Qe7+ {[%emt 0:00:30]} 1-0

[Event "Ramat Gan Masters-A Winter 2023"]
[Site "Ramat Gan/ISR"]
[Date "2023.03.20"]
[Round "7.1"]
[White "Uritsky, Yonathan"]
[Black "Gavriely, Or"]
[Result "1-0"]
[Annotator "TA"]
[ECO "B12"]
[WhiteElo "2047"]
[BlackElo "1991"]
[PlyCount "49"]
[EventDate "2023.01.17"]
[EventType "swiss"]
[SourceTitle "playchess.com"]
[Source "ChessBase"]
[SourceQuality "1"]
[TimeControl "5400+30"]

{[%evp 10,49,31,20,44,29,45,32,60,0,0,0,0,0,0,0,13,0,0,0,9,-12,50,25,125,123,413,414,430,423,465,478,730,550,29992,29993,29993,29994,29994,29995,29995,29996]} 1. e4 {[%emt 0:00:01]} c6 {[%emt 0:00:00]} 2. d4 {[%emt 0:00:14]} d5 {[%emt 0:00:01]} 3. e5 {[%emt 0:00:09]} Bf5 {[%emt 0:00:01]} 4. Nf3 {[%emt 0:00:30]} e6 {[%emt 0:00:02]} 5. Be2 {[%emt 0:00:14]} Nd7 {[%emt 0:00:06]} 6. O-O {[%emt 0:00:11]} a5 {[%emt 0:00:03] B12: Caro-Kann: Advance Variation.} 7. Nbd2 {[%emt 0:03:27]} a4 {[%emt 0:00:19]} 8. c3 {[%emt 0:03:08]} f6 {[%emt 0:02:28] [#] White is slightly better.} 9. Nh4 $146 {[%emt 0:08:53]} (9. b3 $14) ({Predecessor:} 9. exf6 Qxf6 10. Re1 Bd6 11. Nf1 Ne7 12. Bg5 Qf7 13. Bh4 Ng6 14. Ng5 Qf6 15. Ne4 {½-½ Vachier Lagrave,M (2736)-Mitrabha,G (2510) Chessable Masters Play In rapid 2023 (1)}) 9... fxe5 $11 {[%emt 0:06:35]} 10. Nxf5 {[%emt 0:00:02]} exf5 {[%emt 0:00:09]} 11. dxe5 {[%emt 0:00:37]} Nxe5 {[%emt 0:08:27]} 12. Re1 {[%emt 0:02:17]} Be7 {[%emt 0:03:39]} 13. Bh5+ {[%emt 0:04:49][%mdl 64] Discovered Attack} Nf7 {[%emt 0:01:31]} 14. Bxf7+ {[%emt 0:10:07]} Kxf7 {[%emt 0:00:46]} 15. Nf3 {[%emt 0:01:33] And now Ne5+ would win.} Bf6 {[%emt 0:01:12]} (15... Nf6 $1 $11) 16. Qd3 {[%emt 0:03:27][%mdl 1024] White has compensation.} g6 {[%emt 0:01:55]} (16... Ne7 $11 {keeps the balance.}) 17. Bf4 $16 {[%emt 0:00:47][%cal Bc1f4,Bf4d6,Bd6e5][%mdl 32] White is much more active. The black rooks are badly placed.} Kg7 $2 {[%emt 0:22:25][%mdl 8192] A mistake that costs the game.} (17... Ne7 $16 {keeps fighting.}) 18. Re6 $18 {[%emt 0:03:12]} Qd7 {[%emt 0:04:48]} 19. Rae1 {[%emt 0:00:43]} Rf8 {[%emt 0:01:26]} 20. Nd4 {[%emt 0:02:58] Rd6 would be deadly.} Qc8 {[%emt 0:05:09]} (20... Kf7 $142 21. Bd6 Ra8) 21. Bd6 {[%emt 0:02:22] Intending Nxf5+ and mate.} Rd8 {[%emt 0:02:28] [#]} 22. Nxf5+ $1 {[%emt 0:01:13][%mdl 512] White mates.} gxf5 {[%emt 0:02:23]} 23. Qg3+ {[%emt 0:00:03]} Kf7 {[%emt 0:02:11] [#]} 24. Rxf6+ $1 {[%emt 0:00:01][%mdl 576] Remove Defender. Black is weak on the dark squares} Kxf6 {[%emt 0:00:33]} 25. Be5+ {[%emt 0:00:03][%mdl 64] Skewer.   Weighted Error Value: White=0.18 (very precise) /Black=1.03} 1-0

[Event "Ramat Gan Masters-A Winter 2023"]
[Site "Ramat Gan/ISR"]
[Date "2023.03.20"]
[Round "7.2"]
[White "Gershkowich, David"]
[Black "Noy, Eyal"]
[Result "1-0"]
[Annotator "TA"]
[ECO "B33"]
[WhiteElo "2188"]
[BlackElo "2117"]
[PlyCount "93"]
[EventDate "2023.01.17"]
[EventType "swiss"]
[SourceTitle "playchess.com"]
[Source "ChessBase"]
[SourceQuality "1"]
[TimeControl "5400+30"]

{[%evp 20,93,0,0,16,40,41,41,35,35,43,33,29,31,37,33,41,13,38,0,1,4,20,5,18,12,31,25,38,34,37,37,38,38,189,186,204,191,205,186,214,211,246,238,252,247,240,240,246,250,372,370,421,420,467,423,424,418,416,416,410,401,425,384,423,414,410,408,441,441,441,410,1069,1056,1078,1047]} 1. e4 {[%emt 0:00:00]} c5 {[%emt 0:13:43]} 2. Nc3 {[%emt 0:00:20]} Nc6 {[%emt 0:00:19]} 3. Nge2 {[%emt 0:00:10][%cal Bg1e2,Be2d4,Bd4b5,Bb5a3,Ba3c4,Bc4b6,Bb6d5][%mdl 32]} Nf6 {[%emt 0:08:33]} 4. d4 {[%emt 0:00:11]} cxd4 {[%emt 0:00:10]} 5. Nxd4 {[%emt 0:00:05]} e5 {[%emt 0:01:14]} 6. Ndb5 {[%emt 0:00:10]} d6 {[%emt 0:00:19]} 7. a4 {[%emt 0:00:53]} a6 {[%emt 0:03:15]} 8. Na3 {[%emt 0:00:02]} h6 {[%emt 0:03:14]} 9. Be2 {[%emt 0:09:07]} Be7 {[%emt 0:01:48]} 10. O-O {[%emt 0:02:19]} O-O {[%emt 0:02:47]} 11. Be3 {[%emt 0:00:18]} Be6 {[%emt 0:11:29] B33: Sicilian: Pelikan and Sveshnikov Variations.} 12. Nc4 {[%emt 0:00:36]} Nb4 {[%emt 0:09:07]} 13. Nb6 {[%emt 0:04:35]} Rb8 {[%emt 0:00:31] White is slightly better.} 14. Bf3 {[%emt 0:05:59]} Nd7 {[%emt 0:08:17]} 15. Ncd5 {[%emt 0:03:50]} Nxd5 {[%emt 0:00:36]} 16. Nxd5 {[%emt 0:00:34] [#]} Bg5 $146 {[%emt 0:08:11]} ({Predecessor:} 16... Nf6 17. Nb6 Nd7 18. a5 Nxb6 19. Bxb6 Qd7 20. b3 Kh8 21. c4 Rbc8 22. Qe2 Rc6 {1-0 Markoja,S (2095)-Bratkovic,J (1990) EU-chT U18 Maribor 2013 (1)}) 17. Bxg5 {[%emt 0:02:20]} Qxg5 {[%emt 0:08:18]} 18. Ra3 {[%emt 0:03:58]} Rfd8 {[%emt 0:01:35]} 19. Nc7 {[%emt 0:06:45][%cal Oc7e6]} Qe7 {[%emt 0:03:11]} 20. Nxe6 {[%emt 0:01:13]} fxe6 {[%emt 0:03:44] Black is weak on the light squares} 21. Re1 {[%emt 0:04:20]} Nf6 {[%emt 0:00:54]} 22. Rd3 {[%emt 0:01:00]} Rbc8 {[%emt 0:01:57]} 23. c3 {[%emt 0:04:43]} Rc5 {[%emt 0:02:32]} 24. Qe2 {[%emt 0:03:53]} Re8 {[%emt 0:02:34]} 25. Qd2 {[%emt 0:02:05]} Rd8 {[%emt 0:00:29]} 26. g3 {[%emt 0:02:20]} d5 $2 {[%emt 0:01:22] [#] This move loses the game for Black.} ({Black should try} 26... Rc6 $14) 27. exd5 $1 $18 {[%emt 0:01:12]} ({Weaker is} 27. b4 Rc4 $15) 27... Qd6 {[%emt 0:01:47][%cal Re6d5]} 28. Qe2 {[%emt 0:03:36]} e4 {[%emt 0:02:02]} 29. Bxe4 {[%emt 0:00:19][%cal Bf3e4,Be4f5,Bf5g6][%mdl 32]} exd5 {[%emt 0:00:18]} 30. Bf5 {[%emt 0:03:41]} Re8 {[%emt 0:00:29]} 31. Re3 {[%emt 0:00:34]} Rxe3 {[%emt 0:00:43]} 32. Qxe3 {[%emt 0:00:25]} Kf8 {[%emt 0:00:30]} 33. Qf3 {[%emt 0:02:33]} Rc7 {[%emt 0:00:31]} 34. Re6 {[%emt 0:01:02] Dodges Re7} Qd8 {[%emt 0:00:22]} (34... Qc5 $142 35. Qf4 Kf7) 35. Bg6 {[%emt 0:00:44]} Rc8 {[%emt 0:00:38]} 36. Qf5 {[%emt 0:03:47]} Kg8 {[%emt 0:00:30] [#]} 37. Re8+ $3 {[%emt 0:03:53][%mdl 576] Discovered Attack} Qxe8 {[%emt 0:00:01]} 38. Bxe8 {[%emt 0:00:03]} Rxe8 {[%emt 0:00:08][%mdl 4096] Endgame KQ-KRN} 39. Kf1 {[%emt 0:01:55]} Kf7 {[%emt 0:00:23]} 40. h3 {[%emt 0:00:51]} Re7 {[%emt 0:01:22]} 41. Qf4 {[%emt 0:00:27]} Ke6 {[%emt 0:00:25]} 42. Qb8 {[%emt 0:00:43]} Ne4 {[%emt 0:00:09]} 43. Qc8+ {[%emt 0:01:03]} Kd6 {[%emt 0:00:16]} 44. Kg2 {[%emt 0:01:57]} Nf6 {[%emt 0:01:06]} 45. g4 {[%emt 0:01:48]} Nd7 {[%emt 0:00:09]} (45... Rd7 $142 46. Qb8+ Rc7) 46. Qxb7 {[%emt 0:00:37]} Re4 {[%emt 0:01:00]} 47. Qxa6+ {[%emt 0:00:32] Weighted Error Value: White=0.06 (flawless) /Black=0.25 (precise)} 1-0

[Event "Ramat Gan Masters-A Winter 2023"]
[Site "Ramat Gan/ISR"]
[Date "2023.03.20"]
[Round "7.3"]
[White "Chernomordik, Pavel"]
[Black "Sherman, Reem"]
[Result "0-1"]
[Annotator "TA"]
[ECO "C15"]
[WhiteElo "2198"]
[BlackElo "2249"]
[PlyCount "82"]
[EventDate "2023.01.17"]
[EventType "swiss"]
[SourceTitle "playchess.com"]
[Source "ChessBase"]
[SourceQuality "1"]
[TimeControl "5400+30"]

{[%evp 15,82,-4,0,-16,16,-8,-14,-34,-26,-21,-29,-10,11,0,0,0,0,-26,0,-39,-41,-34,-27,-87,-95,-88,-44,-66,-80,-77,-31,-77,-74,-174,-187,-160,-161,-205,-187,-268,-272,-303,-240,-221,-201,-211,-200,-240,-239,-239,-238,-246,-238,-294,-299,-315,-302,-649,-474,-581,-544,-983,-667,-1031,-1027,-1339,-1289,-1276,-1230]} 1. e4 {[%emt 0:00:03]} e6 {[%emt 0:00:06]} 2. Nc3 {[%emt 0:00:24]} d5 {[%emt 0:00:06]} 3. d4 {[%emt 0:00:06]} Bb4 {[%emt 0:00:05]} 4. a3 {[%emt 0:00:47]} Bxc3+ {[%emt 0:01:00]} 5. bxc3 {[%emt 0:00:35]} dxe4 {[%emt 0:01:37]} 6. Qg4 {[%emt 0:00:05]} Nf6 {[%emt 0:01:08]} 7. Qxg7 {[%emt 0:00:03]} Rg8 {[%emt 0:00:06]} 8. Qh6 {[%emt 0:00:09] [#]} c5 $1 {[%emt 0:02:11]} 9. Qd2 {[%emt 0:04:22] [#] C15: French: 3 Nc3 Bb4: Unusual White 4th moves.} (9. Ne2 cxd4) 9... Qb6 $146 {[%emt 0:06:51]} ({Predecessor:} 9... Nc6 10. Ne2 cxd4 11. Nxd4 Nxd4 12. cxd4 Qb6 13. Qb4 Nd5 14. Qxb6 Nxb6 15. Bb5+ Bd7 16. Bxd7+ Kxd7 {½-½ Pava Carvajal,H-Rosales Espinel,J (1289) Bucaramanga Santander Cup 2022 (7)}) 10. a4 {[%emt 0:04:41]} Nc6 {[%emt 0:05:34][%cal Bb8c6,Bc6e7,Be7f5][%mdl 32]} 11. Ne2 {[%emt 0:05:29][%cal Oa4a5] The position is equal.} (11. a5 {seems wilder.} Nxa5 12. Qf4 Nd5 13. Qxe4 Bd7 14. Nf3) 11... Bd7 {[%emt 0:09:30]} 12. Ba3 {[%emt 0:08:52]} cxd4 $1 {[%emt 0:07:31]} 13. cxd4 {[%emt 0:02:00]} Qc7 {[%emt 0:13:05]} 14. Nc3 {[%emt 0:12:43] Threatens to win with Nb5.} a6 {[%emt 0:03:01] Repels Nb5} 15. Rb1 {[%emt 0:00:38]} Ne7 {[%emt 0:02:05]} 16. Bc5 {[%emt 0:03:07]} Bc6 {[%emt 0:01:20]} 17. a5 {[%emt 0:04:01]} Nf5 {[%emt 0:06:05]} 18. Bb6 $1 {[%emt 0:08:47]} Qe7 {[%emt 0:00:25]} 19. Rb3 {[%emt 0:02:31]} (19. Nd1 $11 {keeps the balance.}) 19... Rc8 $17 {[%emt 0:04:36]} 20. Nd1 {[%emt 0:11:00]} Ba4 {[%emt 0:07:38][%cal Bc6a4,Ba4c2,Bc2d3][%mdl 32]} 21. Rc3 {[%emt 0:01:34]} Rxc3 {[%emt 0:00:08]} 22. Qxc3 {[%emt 0:00:06] Qc8+ would kill now.} Qd7 {[%emt 0:00:19] Dodges Qc8+} (22... Bc6 $17 {[%cal Oe4e3] And now ...e3! would win.} 23. Bc5 Qd8) 23. Bc5 {[%emt 0:03:06]} (23. Qd2 $15) 23... Qc6 $36 {[%emt 0:06:28][%mdl 2048] Black is really pushing. Black continues to play with concentration.} 24. Nb2 {[%emt 0:07:40]} (24. Ne3 $17 {might work better.}) 24... Nd5 {[%emt 0:03:08][%mdl 64] [#] Deflection} 25. Qa3 {[%emt 0:03:04]} Bxc2 {[%emt 0:01:11] Black has more active pieces.} 26. Kd2 {[%emt 0:02:58]} Bd3 {[%emt 0:02:52][%mdl 64] Deflection} (26... Bb1 27. Nc4 f6 28. g3 $11) 27. Nxd3 {[%emt 0:01:46]} (27. Bxd3 $142 exd3 28. g3) 27... exd3 $19 {[%emt 0:00:06]} 28. Qxd3 {[%emt 0:00:17]} Qa4 {[%emt 0:00:49]} 29. Qa3 {[%emt 0:01:07]} Qxa3 {[%emt 0:01:05]} 30. Bxa3 {[%emt 0:00:01]} Nxd4 {[%emt 0:00:12]} 31. g3 {[%emt 0:04:05]} Nb3+ {[%emt 0:01:18] Excellent horsemanship.} 32. Kc2 {[%emt 0:01:15]} Nxa5 {[%emt 0:00:05]} 33. Bd3 {[%emt 0:00:13]} f5 {[%emt 0:04:26][%cal Bf7f5,Bf5g4,Bg4h3][%mdl 32]} 34. Re1 {[%emt 0:02:19]} Kd7 {[%emt 0:00:36]} 35. Kb2 {[%emt 0:02:43]} Rc8 {[%emt 0:00:16] aiming for ...Rc3.} 36. g4 $2 {[%emt 0:00:52]} (36. Rc1) 36... fxg4 {[%emt 0:02:42] Hoping for ...Rc3. Black is clearly winning.} 37. Re4 {[%emt 0:00:14]} h5 {[%emt 0:01:47]} 38. h3 {[%emt 0:01:13]} gxh3 {[%emt 0:00:45] Strongly threatening ...Rc3.} 39. Rh4 {[%emt 0:00:01]} Rc3 {[%emt 0:00:47]} 40. Bf1 {[%emt 0:01:04]} Rb3+ {[%emt 0:00:13]} 41. Kc2 {[%emt 0:00:47]} Rxa3 {[%emt 0:00:15] Weighted Error Value: White=0.77/Black=0.27 (precise)} 0-1

[Event "Ramat Gan Masters-A Winter 2023"]
[Site "Ramat Gan/ISR"]
[Date "2023.03.20"]
[Round "7.4"]
[White "Tashkinova, Sofiia"]
[Black "Hasson Shreger, Shalev"]
[Result "0-1"]
[Annotator "TA"]
[ECO "B22"]
[WhiteElo "1928"]
[BlackElo "1823"]
[PlyCount "110"]
[EventDate "2023.01.17"]
[EventType "swiss"]
[SourceTitle "playchess.com"]
[Source "ChessBase"]
[SourceQuality "1"]
[TimeControl "5400+30"]

{[%evp 9,110,7,25,0,11,0,0,0,14,-31,-25,-14,-15,-10,-17,-31,-41,-27,0,0,0,0,57,50,62,69,106,100,100,98,111,85,129,116,116,120,98,100,114,108,116,116,107,98,115,118,122,-60,-55,-116,0,0,0,0,125,100,95,0,0,0,0,0,488,0,78,72,83,79,149,147,139,138,176,92,198,200,181,170,186,97,127,118,493,495,1272,1234,1048,71,70,56,52,-188,-172,-29990,-29991,-29991,-29992,-29992,-29993,-29993,-29992,-29997,-29998]} 1. e4 {[%emt 0:00:02]} c5 {[%emt 0:00:00]} 2. c3 {[%emt 0:00:12]} Nf6 {[%emt 0:00:10]} 3. e5 {[%emt 0:00:38]} Nd5 {[%emt 0:01:17]} 4. Bc4 {[%emt 0:00:16]} Nb6 {[%emt 0:00:09]} 5. Bb3 {[%emt 0:00:05]} Nc6 {[%emt 0:00:09]} 6. d4 {[%emt 0:02:44] B22: Sicilian: 2 c3.} (6. Qh5 c4 7. Bc2 d6 8. exd6 e5 $15) 6... cxd4 {[%emt 0:01:41]} 7. cxd4 {[%emt 0:00:10]} d6 {[%emt 0:00:18]} 8. e6 {[%emt 0:04:38] The position is equal. Nowadays more popular than 8.exd6.} fxe6 {[%emt 0:00:54]} (8... Bxe6 9. d5 Nxd5 10. Bxd5 $16) 9. Be3 {[%emt 0:01:03]} g6 {[%emt 0:17:09]} 10. Nc3 {[%emt 0:00:59] Prevents Nd5.} Bg7 {[%emt 0:06:36]} 11. Nf3 {[%emt 0:01:40] [#]} Na5 $146 {[%emt 0:09:40]} ({Predecessor:} 11... O-O 12. a4 a5 13. Qd2 Nb4 14. Bh6 N4d5 15. Nb5 Bd7 16. Bxg7 Kxg7 17. Nc3 Qe8 {0-1 Koennen,T-Van Kerkhof,D Soest op 2000 (6)}) 12. h4 {[%emt 0:04:20]} Nxb3 {[%emt 0:12:17]} 13. Qxb3 {[%emt 0:00:23] [#]} Nd5 $1 {[%emt 0:01:58]} 14. Nxd5 {[%emt 0:04:58]} exd5 {[%emt 0:00:07]} 15. Qxd5 {[%emt 0:01:09]} e6 {[%emt 0:02:19] Black is weak on the dark squares} (15... Qd7 $11) 16. Qb5+ $1 $14 {[%emt 0:00:51]} Bd7 {[%emt 0:04:09]} 17. Qxb7 {[%emt 0:02:24]} Qb8 {[%emt 0:00:36]} 18. Qe4 {[%emt 0:03:10]} d5 {[%emt 0:00:15]} 19. Qc2 {[%emt 0:01:40]} Qb4+ {[%emt 0:03:32]} 20. Bd2 {[%emt 0:01:17]} Qb6 {[%emt 0:00:42]} 21. Bc3 {[%emt 0:00:46]} O-O {[%emt 0:03:32]} 22. h5 {[%emt 0:02:36][%cal Bh4h5,Bh5h6][%mdl 32]} Be8 {[%emt 0:00:16]} 23. h6 {[%emt 0:02:42]} Bh8 {[%emt 0:00:11]} 24. O-O-O {[%emt 0:04:04]} Qa6 {[%emt 0:03:15]} 25. Kb1 {[%emt 0:02:27]} Rb8 {[%emt 0:00:48]} 26. Rde1 {[%emt 0:02:27]} Bb5 {[%emt 0:00:22]} 27. Re3 {[%emt 0:05:03] Repels Bd3} Rfc8 {[%emt 0:05:15]} 28. Kc1 $2 {[%emt 0:08:21]} ({Better is} 28. Qd2 $16) 28... Qxa2 $15 {[%emt 0:11:05]} 29. Rxe6 {[%emt 0:07:48]} ({White should try} 29. Kd2 $15) 29... Rb6 {[%emt 0:02:18] The board is on fire.} (29... Bd7 $1 $17 {[%cal Rd7e6]} 30. Rhe1 Bxe6 31. Rxe6 Rb6 32. Rxb6 axb6) 30. Rxb6 $11 {[%emt 0:04:18]} axb6 {[%emt 0:00:01]} 31. Re1 {[%emt 0:01:26]} Qa6 {[%emt 0:02:05]} (31... Bd7 $11) 32. Kd2 {[%emt 0:02:09] Black must now prevent Re6.} Bf6 {[%emt 0:01:53]} 33. g3 {[%emt 0:01:27]} ({White should play} 33. Qb3 $16 Bc6 34. Qb4) 33... Rf8 $1 {[%emt 0:01:29][%cal Of6g5]} 34. Qb3 {[%emt 0:11:08]} Bc4 {[%emt 0:01:20] This pair of bishops is nice.} 35. Qa3 {[%emt 0:04:14]} Qb5 $2 {[%emt 0:03:58][%mdl 8192]} (35... Qxa3 $11 {and Black has nothing to worry.} 36. bxa3 Bg7 37. hxg7 Rxf3) 36. Qb4 $2 {[%emt 0:00:46]} ({White has to play} 36. Qd6 $1 $18 Rf7 37. Re6) 36... Qc6 {[%emt 0:00:01]} (36... Bg7 $1 $11 {keeps the balance.} 37. hxg7 Qxb4 38. Bxb4 Rxf3) 37. Re3 $1 $16 {[%emt 0:02:10]} Bf1 {[%emt 0:01:30]} 38. Ke1 {[%emt 0:00:40]} Bg2 {[%emt 0:06:13]} (38... Ba6 $142) 39. Ne5 {[%emt 0:00:35]} Bxe5 {[%emt 0:00:00]} 40. dxe5 {[%emt 0:00:56] e6 is the strong threat.} Qa8 {[%emt 0:00:00] And now ...Qa1+ would win.} 41. Qa3 {[%emt 0:00:37] Repels Qa1+} (41. f4 $18 {aiming for Qd4.} Qc6 42. Kd2) 41... Qc6 {[%emt 0:00:00]} (41... Qxa3 $16 42. bxa3 Rf3) 42. Qe7 $18 {[%emt 0:02:06][%csl Gh6][%cal Re7g7]} Rf7 {[%emt 0:00:00] [#] Repels Qg7+} 43. Qb4 {[%emt 0:00:14] Threatening mate with e6.} Qe6 {[%emt 0:00:50]} 44. Qh4 {[%emt 0:02:23]} (44. Qd6 $18 Qxd6 45. exd6) 44... Qf5 {[%emt 0:00:44]} 45. f4 {[%emt 0:00:56] Hoping for e6.} Be4 $2 {[%emt 0:01:21][%mdl 8192]} (45... Qc2 $16) 46. Bb4 {[%emt 0:01:01]} Qc8 {[%emt 0:00:24]} (46... g5 $142 47. Qh5 (47. Qxg5+ Qxg5 48. fxg5 Rf5 $16) 47... Qg6 48. Qxg6+ (48. Qxg5 Qxg5 49. fxg5 Rf5 $16) 48... Bxg6) 47. Rc3 {[%emt 0:00:22]} Qa8 {[%emt 0:00:12]} 48. Kd2 $2 {[%emt 0:01:06]} (48. Kf2 $18 {White wants to mate with e6.} Bf5 49. Rc6) 48... d4 $16 {[%emt 0:00:20]} 49. Rc1 {[%emt 0:00:13] e6 would kill now.} (49. Rc4 Bf5 $11) 49... Bf5 {[%emt 0:00:11] Strongly threatening ...Qg2+.} 50. Qh2 {[%emt 0:03:46] [#] Prevents Qg2+} ({Much weaker is} 50. Rc6 Rc7 51. Qf6 (51. Rxc7 Qg2+ 52. Ke1 Qg1+ 53. Ke2 Qg2+ 54. Kd1 Qf1+ 55. Be1 Qd3+ 56. Bd2 Qf1+ 57. Be1 Qd3+ 58. Bd2 Qf1+ 59. Be1 $11) 51... Rf7 $11) (50. Qh1 $1 $14 {stays ahead.} Qxh1 51. Rxh1) 50... Qf3 $1 $36 {[%emt 0:00:17][%mdl 3072] Black has strong compensation. Black is in control.} 51. e6 $2 {[%emt 0:02:34]} (51. Qe2 $19 Qxg3 52. e6 Qxf4+ 53. Kd1) 51... Qe3+ {[%emt 0:00:34] Black mates.} ({Not} 51... Bxe6 52. Qe2 Qxe2+ 53. Kxe2 $16) 52. Kd1 {[%emt 0:00:41]} Bg4+ {[%emt 0:00:20]} 53. Kc2 {[%emt 0:00:07]} Rc7+ {[%emt 0:00:23][%mdl 64] Skewer} 54. Bc3 {[%emt 0:00:38]} dxc3 {[%emt 0:00:18]} 55. Qh1 {[%emt 0:00:42]} Qd2+ {[%emt 0:00:19] Beautiful play by Hasson Shreger!   Weighted Error Value: White=0.64/Black=0.36} 0-1